[Event "Titled Tuesday Blitz February 28 Late 2023"]
[White "Golubka, Petro"]
[Black "Koc, Przemyslaw"]
[WhiteFideId "14114224"]
[BlackFideId "1109081"]
[WhiteElo "2404"]
[BlackElo "2161"]
[Result "1-0"]
[Round "07"]
[TimeControl "180+2"]
[Date "2023.02.28"]
[WhiteClock "0:01:23"]
[BlackClock "0:00:12"]

1. e4 {[%clk 0:03:00]}  e5 {[%clk 0:02:59]} 2. Qh5 {[%clk 0:02:58]}  Nc6 {[%clk 0:02:56]} 3. Bc4 {[%clk 0:02:57]}  g6 {[%clk 0:02:55]} 4. Qf3 {[%clk 0:02:56]}  Nf6 {[%clk 0:02:55]} 5. c3 {[%clk 0:02:56]}  Bg7 {[%clk 0:02:52]} 6. d3 {[%clk 0:02:56]}  d6 {[%clk 0:02:47]} 7. h3 {[%clk 0:02:55]}  Na5 {[%clk 0:02:44]} 8. Bb5+ {[%clk 0:02:54]}  c6 {[%clk 0:02:44]} 9. Ba4 {[%clk 0:02:53]}  b5 {[%clk 0:02:44]} 10. Bc2 {[%clk 0:02:53]}  O-O {[%clk 0:02:43]} 11. Ne2 {[%clk 0:02:53]}  d5 {[%clk 0:02:43]} 12. Nd2 {[%clk 0:02:50]}  c5 {[%clk 0:02:37]} 13. Ng3 {[%clk 0:02:48]}  Nc6 {[%clk 0:02:33]} 14. O-O {[%clk 0:02:45]}  a5 {[%clk 0:02:24]} 15. a4 {[%clk 0:02:43]}  b4 {[%clk 0:02:24]} 16. Bb3 {[%clk 0:02:41]}  Be6 {[%clk 0:02:22]} 17. Rd1 {[%clk 0:02:38]}  Qd7 {[%clk 0:02:00]} 18. exd5 {[%clk 0:02:37]}  Nxd5 {[%clk 0:02:00]} 19. Nge4 {[%clk 0:02:36]}  Qe7 {[%clk 0:01:56]} 20. Nc4 {[%clk 0:02:32]}  Rad8 {[%clk 0:01:51]} 21. Bg5 {[%clk 0:02:30]}  f6 {[%clk 0:01:51]} 22. Be3 {[%clk 0:02:29]}  f5 {[%clk 0:01:49]} 23. Nxc5 {[%clk 0:02:26]}  Nxe3 {[%clk 0:01:46]} 24. Nxe6 {[%clk 0:02:22]}  Nxd1 {[%clk 0:01:40]} 25. Qxd1 {[%clk 0:02:22]}  Qxe6 {[%clk 0:01:28]} 26. Ne3 {[%clk 0:02:03]}  Qxb3 {[%clk 0:01:11]} 27. Qxb3+ {[%clk 0:02:04]}  Kh8 {[%clk 0:01:10]} 28. Rd1 {[%clk 0:02:04]}  f4 {[%clk 0:01:06]} 29. Nc4 {[%clk 0:02:03]}  f3 {[%clk 0:01:06]} 30. Ne3 {[%clk 0:02:01]}  fxg2 {[%clk 0:01:04]} 31. Kxg2 {[%clk 0:02:02]}  Ne7 {[%clk 0:01:02]} 32. cxb4 {[%clk 0:02:00]}  axb4 {[%clk 0:01:01]} 33. Qxb4 {[%clk 0:02:01]}  Nc6 {[%clk 0:00:59]} 34. Qe4 {[%clk 0:02:00]}  Nd4 {[%clk 0:00:59]} 35. a5 {[%clk 0:01:55]}  Rf4 {[%clk 0:00:58]} 36. Qb7 {[%clk 0:01:54]}  Rdf8 {[%clk 0:00:58]} 37. Rf1 {[%clk 0:01:54]}  Nf3 {[%clk 0:00:42]} 38. a6 {[%clk 0:01:52]}  Nd2 {[%clk 0:00:38]} 39. a7 {[%clk 0:01:38]}  Nxf1 {[%clk 0:00:37]} 40. Kxf1 {[%clk 0:01:37]}  Rxf2+ {[%clk 0:00:37]} 41. Ke1 {[%clk 0:01:37]}  Bh6 {[%clk 0:00:25]} 42. Qe4 {[%clk 0:01:27]}  Rxb2 {[%clk 0:00:21]} 43. a8=Q {[%clk 0:01:23]}  Rb1+ {[%clk 0:00:14]} 44. Ke2 {[%clk 0:01:23]}  Rb2+ {[%clk 0:00:13]} 45. Kd1 {[%clk 0:01:23]}  Rb1+ {[%clk 0:00:12]} 46. Kc2 {[%clk 0:01:23]} 1-0


[Site "https://www.chess.com"]

[Event "Titled Tuesday Blitz February 28 Late 2023"]
[White "Leschinsky, Gary"]
[Black "Zhigalko, Sergei"]
[WhiteFideId "30951321"]
[BlackFideId "13502956"]
[WhiteElo "1855"]
[BlackElo "2626"]
[Result "1-0"]
[Round "07"]
[TimeControl "180+2"]
[Date "2023.02.28"]
[WhiteClock "0:00:33"]
[BlackClock "0:00:13"]

1. d4 {[%clk 0:03:00]}  Nf6 {[%clk 0:03:00]} 2. c4 {[%clk 0:03:01]}  e6 {[%clk 0:03:00]} 3. Nc3 {[%clk 0:03:02]}  Bb4 {[%clk 0:03:01]} 4. e3 {[%clk 0:03:02]}  O-O {[%clk 0:03:01]} 5. Bd2 {[%clk 0:03:02]}  b6 {[%clk 0:03:00]} 6. Nf3 {[%clk 0:03:00]}  Bb7 {[%clk 0:03:01]} 7. Bd3 {[%clk 0:03:00]}  d5 {[%clk 0:03:01]} 8. cxd5 {[%clk 0:02:57]}  exd5 {[%clk 0:03:01]} 9. O-O {[%clk 0:02:57]}  Bd6 {[%clk 0:02:58]} 10. Qb1 {[%clk 0:02:45]}  Re8 {[%clk 0:02:49]} 11. b4 {[%clk 0:02:42]}  Ne4 {[%clk 0:02:45]} 12. Rd1 {[%clk 0:02:41]}  Nd7 {[%clk 0:02:40]} 13. a4 {[%clk 0:02:39]}  a6 {[%clk 0:02:29]} 14. b5 {[%clk 0:02:33]}  a5 {[%clk 0:02:29]} 15. Qc2 {[%clk 0:02:29]}  Qf6 {[%clk 0:02:13]} 16. Be1 {[%clk 0:02:25]}  Qh6 {[%clk 0:02:08]} 17. h3 {[%clk 0:02:20]}  Rad8 {[%clk 0:02:02]} 18. Ne2 {[%clk 0:02:18]}  Ndf6 {[%clk 0:01:08]} 19. Rac1 {[%clk 0:02:00]}  Bc8 {[%clk 0:01:06]} 20. Ne5 {[%clk 0:01:46]}  Bxh3 {[%clk 0:00:15]} 21. gxh3 {[%clk 0:01:46]}  Qxh3 {[%clk 0:00:16]} 22. Nf4 {[%clk 0:01:47]}  Qh6 {[%clk 0:00:14]} 23. f3 {[%clk 0:01:42]}  Ng5 {[%clk 0:00:09]} 24. Qg2 {[%clk 0:01:38]}  Bxe5 {[%clk 0:00:06]} 25. dxe5 {[%clk 0:01:39]}  Rxe5 {[%clk 0:00:07]} 26. Bf2 {[%clk 0:01:26]}  Ne6 {[%clk 0:00:06]} 27. Nxe6 {[%clk 0:01:25]}  fxe6 {[%clk 0:00:07]} 28. f4 {[%clk 0:01:25]}  Rh5 {[%clk 0:00:07]} 29. Rxc7 {[%clk 0:01:20]}  Rf8 {[%clk 0:00:06]} 30. Be2 {[%clk 0:01:10]}  Rh3 {[%clk 0:00:05]} 31. Bf3 {[%clk 0:00:51]}  Kh8 {[%clk 0:00:04]} 32. Re7 {[%clk 0:00:43]}  Rg8 {[%clk 0:00:03]} 33. Rxe6 {[%clk 0:00:43]}  g5 {[%clk 0:00:01]} 34. Rxf6 {[%clk 0:00:41]}  Qxf6 {[%clk 0:00:02]} 35. Qxh3 {[%clk 0:00:41]}  gxf4+ {[%clk 0:00:03]} 36. Kh1 {[%clk 0:00:39]}  Rg6 {[%clk 0:00:03]} 37. Qc8+ {[%clk 0:00:38]}  Kg7 {[%clk 0:00:03]} 38. Qd7+ {[%clk 0:00:37]}  Kg8 {[%clk 0:00:03]} 39. Qxd5+ {[%clk 0:00:36]}  Kg7 {[%clk 0:00:02]} 40. Qd4 {[%clk 0:00:36]}  Rh6+ {[%clk 0:00:02]} 41. Kg1 {[%clk 0:00:36]}  Rg6+ {[%clk 0:00:03]} 42. Kf1 {[%clk 0:00:36]}  fxe3 {[%clk 0:00:03]} 43. Bxe3 {[%clk 0:00:34]}  Kf7 {[%clk 0:00:03]} 44. Qxf6+ {[%clk 0:00:34]}  Rxf6 {[%clk 0:00:04]} 45. Kf2 {[%clk 0:00:34]}  Rxf3+ {[%clk 0:00:04]} 46. Kxf3 {[%clk 0:00:34]}  Ke6 {[%clk 0:00:05]} 47. Rh1 {[%clk 0:00:35]}  Kd5 {[%clk 0:00:05]} 48. Rxh7 {[%clk 0:00:35]}  Kc4 {[%clk 0:00:05]} 49. Bxb6 {[%clk 0:00:35]}  Kb3 {[%clk 0:00:06]} 50. Rh4 {[%clk 0:00:33]}  Ka3 {[%clk 0:00:06]} 51. Bxa5 {[%clk 0:00:33]}  Kb3 {[%clk 0:00:07]} 52. Bd8 {[%clk 0:00:33]}  Ka3 {[%clk 0:00:08]} 53. b6 {[%clk 0:00:33]}  Kb3 {[%clk 0:00:09]} 54. b7 {[%clk 0:00:34]}  Ka2 {[%clk 0:00:10]} 55. b8=Q {[%clk 0:00:33]}  Ka1 {[%clk 0:00:11]} 56. Rh1+ {[%clk 0:00:33]}  Ka2 {[%clk 0:00:12]} 57. Qb1+ {[%clk 0:00:32]}  Ka3 {[%clk 0:00:12]} 58. Be7+ {[%clk 0:00:33]}  Kxa4 {[%clk 0:00:13]} 59. Qb4# {[%clk 0:00:33]} 1-0


[Site "https://www.chess.com"]

[Event "Titled Tuesday Blitz February 28 Late 2023"]
[White "Manelyuk, Daniil"]
[Black "Gadimbayli, Abdulla"]
[WhiteFideId "44173920"]
[BlackFideId "13404938"]
[WhiteElo "2259"]
[BlackElo "2390"]
[Result "1-0"]
[Round "07"]
[TimeControl "180+2"]
[Date "2023.02.28"]
[WhiteClock "0:01:03"]
[BlackClock "0:00:24"]

1. e4 {[%clk 0:03:00]}  c5 {[%clk 0:03:00]} 2. Nf3 {[%clk 0:02:59]}  d6 {[%clk 0:03:00]} 3. d4 {[%clk 0:02:58]}  cxd4 {[%clk 0:03:01]} 4. Nxd4 {[%clk 0:02:58]}  Nf6 {[%clk 0:03:02]} 5. Nc3 {[%clk 0:02:59]}  a6 {[%clk 0:03:02]} 6. f3 {[%clk 0:02:59]}  e5 {[%clk 0:02:57]} 7. Nb3 {[%clk 0:02:59]}  Be6 {[%clk 0:02:57]} 8. Be3 {[%clk 0:02:59]}  Be7 {[%clk 0:02:57]} 9. Qd2 {[%clk 0:02:59]}  O-O {[%clk 0:02:57]} 10. O-O-O {[%clk 0:02:58]}  Nbd7 {[%clk 0:02:57]} 11. g4 {[%clk 0:02:58]}  b5 {[%clk 0:02:55]} 12. g5 {[%clk 0:02:59]}  Nh5 {[%clk 0:02:55]} 13. Kb1 {[%clk 0:02:53]}  Nb6 {[%clk 0:02:55]} 14. Na5 {[%clk 0:02:53]}  Qc7 {[%clk 0:02:53]} 15. Nd5 {[%clk 0:02:53]}  Nxd5 {[%clk 0:02:53]} 16. exd5 {[%clk 0:02:53]}  Bd7 {[%clk 0:02:50]} 17. Bd3 {[%clk 0:02:48]}  Rac8 {[%clk 0:02:21]} 18. Be4 {[%clk 0:02:36]}  f5 {[%clk 0:02:20]} 19. gxf6 {[%clk 0:02:35]}  Nxf6 {[%clk 0:02:20]} 20. Rhg1 {[%clk 0:02:31]}  Nxe4 {[%clk 0:02:00]} 21. fxe4 {[%clk 0:02:32]}  Rf7 {[%clk 0:02:00]} 22. Rg2 {[%clk 0:01:45]}  g6 {[%clk 0:01:53]} 23. a3 {[%clk 0:01:41]}  Rf3 {[%clk 0:01:43]} 24. Rdg1 {[%clk 0:01:26]}  Rxe3 {[%clk 0:01:19]} 25. Qxe3 {[%clk 0:01:27]}  Qxa5 {[%clk 0:01:20]} 26. Qh6 {[%clk 0:01:17]}  Be8 {[%clk 0:01:19]} 27. Qh3 {[%clk 0:01:14]}  Qc7 {[%clk 0:01:16]} 28. Rf1 {[%clk 0:01:10]}  Qd7 {[%clk 0:00:58]} 29. Qh6 {[%clk 0:01:08]}  b4 {[%clk 0:00:24]} 30. Rgf2 {[%clk 0:01:03]} 1-0


[Site "https://www.chess.com"]

[Event "Titled Tuesday Blitz February 28 Late 2023"]
[White "EREBUNI91"]
[Black "Berezin, Viktor"]
[BlackFideId "14107872"]
[WhiteElo "2719"]
[BlackElo "2310"]
[Result "1/2-1/2"]
[Round "07"]
[TimeControl "180+2"]
[Date "2023.02.28"]
[WhiteClock "0:00:04"]
[BlackClock "0:00:12"]

1. e4 {[%clk 0:02:55]}  g6 {[%clk 0:02:59]} 2. d4 {[%clk 0:02:55]}  Bg7 {[%clk 0:03:00]} 3. Nc3 {[%clk 0:02:56]}  d6 {[%clk 0:03:00]} 4. Nf3 {[%clk 0:02:56]}  Nf6 {[%clk 0:03:00]} 5. h3 {[%clk 0:02:52]}  O-O {[%clk 0:03:00]} 6. Be3 {[%clk 0:02:52]}  c6 {[%clk 0:02:59]} 7. Qd2 {[%clk 0:02:51]}  b5 {[%clk 0:02:59]} 8. Bd3 {[%clk 0:02:48]}  Nbd7 {[%clk 0:02:59]} 9. O-O {[%clk 0:02:45]}  e5 {[%clk 0:02:59]} 10. Rad1 {[%clk 0:02:40]}  Qc7 {[%clk 0:02:56]} 11. Rfe1 {[%clk 0:02:38]}  Re8 {[%clk 0:02:55]} 12. Bh6 {[%clk 0:02:30]}  Bh8 {[%clk 0:02:48]} 13. Bf1 {[%clk 0:02:07]}  Bb7 {[%clk 0:02:03]} 14. dxe5 {[%clk 0:01:47]}  dxe5 {[%clk 0:02:04]} 15. Qd6 {[%clk 0:01:47]}  Qxd6 {[%clk 0:02:02]} 16. Rxd6 {[%clk 0:01:48]}  Bg7 {[%clk 0:02:03]} 17. Bxg7 {[%clk 0:01:44]}  Kxg7 {[%clk 0:02:03]} 18. Red1 {[%clk 0:01:42]}  Rad8 {[%clk 0:01:44]} 19. g4 {[%clk 0:01:02]}  h6 {[%clk 0:01:36]} 20. h4 {[%clk 0:00:58]}  Bc8 {[%clk 0:00:55]} 21. Rxc6 {[%clk 0:00:47]}  b4 {[%clk 0:00:53]} 22. Nb5 {[%clk 0:00:41]}  Nxe4 {[%clk 0:00:49]} 23. Nxa7 {[%clk 0:00:28]}  Bb7 {[%clk 0:00:45]} 24. Rc7 {[%clk 0:00:27]}  Nec5 {[%clk 0:00:45]} 25. Ne1 {[%clk 0:00:18]}  Re7 {[%clk 0:00:35]} 26. Rxc5 {[%clk 0:00:16]}  Nxc5 {[%clk 0:00:29]} 27. Rxd8 {[%clk 0:00:17]}  Be4 {[%clk 0:00:23]} 28. Nb5 {[%clk 0:00:16]}  f5 {[%clk 0:00:22]} 29. Nd6 {[%clk 0:00:14]}  Kf6 {[%clk 0:00:18]} 30. Nxe4+ {[%clk 0:00:13]}  Nxe4 {[%clk 0:00:19]} 31. gxf5 {[%clk 0:00:13]}  gxf5 {[%clk 0:00:20]} 32. Bg2 {[%clk 0:00:12]}  Nc5 {[%clk 0:00:18]} 33. Nd3 {[%clk 0:00:11]}  Na4 {[%clk 0:00:18]} 34. Rd6+ {[%clk 0:00:10]}  Kg7 {[%clk 0:00:16]} 35. b3 {[%clk 0:00:10]}  Nc3 {[%clk 0:00:16]} 36. Ra6 {[%clk 0:00:08]}  e4 {[%clk 0:00:16]} 37. Nxb4 {[%clk 0:00:08]}  Ne2+ {[%clk 0:00:16]} 38. Kf1 {[%clk 0:00:08]}  Nf4 {[%clk 0:00:16]} 39. Nc6 {[%clk 0:00:09]}  Rd7 {[%clk 0:00:16]} 40. Ra7 {[%clk 0:00:09]}  Rxa7 {[%clk 0:00:15]} 41. Nxa7 {[%clk 0:00:10]}  Nd5 {[%clk 0:00:15]} 42. a4 {[%clk 0:00:10]}  Kf6 {[%clk 0:00:15]} 43. a5 {[%clk 0:00:10]}  Ke5 {[%clk 0:00:15]} 44. a6 {[%clk 0:00:09]}  Nb4 {[%clk 0:00:15]} 45. Nb5 {[%clk 0:00:07]}  Nxa6 {[%clk 0:00:15]} 46. c4 {[%clk 0:00:08]}  Nc5 {[%clk 0:00:14]} 47. b4 {[%clk 0:00:08]}  Nd3 {[%clk 0:00:14]} 48. Ke2 {[%clk 0:00:05]}  Nxb4 {[%clk 0:00:15]} 49. Nc3 {[%clk 0:00:06]}  Kd4 {[%clk 0:00:14]} 50. Nb5+ {[%clk 0:00:05]}  Kc5 {[%clk 0:00:14]} 51. Bh3 {[%clk 0:00:04]}  f4 {[%clk 0:00:14]} 52. Bf5 {[%clk 0:00:03]}  e3 {[%clk 0:00:11]} 53. fxe3 {[%clk 0:00:04]}  fxe3 {[%clk 0:00:11]} 54. Kxe3 {[%clk 0:00:05]}  Kxc4 {[%clk 0:00:12]} 55. Nd6+ {[%clk 0:00:05]}  Kd5 {[%clk 0:00:12]} 56. Nf7 {[%clk 0:00:05]}  h5 {[%clk 0:00:12]} 57. Bg6 {[%clk 0:00:06]}  Ke6 {[%clk 0:00:12]} 58. Bxh5 {[%clk 0:00:06]}  Kf6 {[%clk 0:00:11]} 59. Ng5 {[%clk 0:00:05]}  Nd5+ {[%clk 0:00:11]} 60. Kf3 {[%clk 0:00:05]}  Ne7 {[%clk 0:00:11]} 61. Bg4 {[%clk 0:00:05]}  Ng6 {[%clk 0:00:11]} 62. Kg3 {[%clk 0:00:06]}  Nxh4 {[%clk 0:00:08]} 63. Kxh4 {[%clk 0:00:06]}  Kg6 {[%clk 0:00:09]} 64. Bh5+ {[%clk 0:00:06]}  Kf6 {[%clk 0:00:10]} 65. Kg4 {[%clk 0:00:06]}  Ke5 {[%clk 0:00:11]} 66. Nh3 {[%clk 0:00:06]}  Ke4 {[%clk 0:00:11]} 67. Nf4 {[%clk 0:00:06]}  Ke5 {[%clk 0:00:11]} 68. Kf3 {[%clk 0:00:06]}  Kf5 {[%clk 0:00:11]} 69. Bg4+ {[%clk 0:00:07]}  Ke5 {[%clk 0:00:11]} 70. Ke3 {[%clk 0:00:08]}  Kf6 {[%clk 0:00:08]} 71. Ke4 {[%clk 0:00:07]}  Kg5 {[%clk 0:00:08]} 72. Bc8 {[%clk 0:00:07]}  Kf6 {[%clk 0:00:09]} 73. Nd5+ {[%clk 0:00:07]}  Kg6 {[%clk 0:00:09]} 74. Bf5+ {[%clk 0:00:07]}  Kg7 {[%clk 0:00:09]} 75. Ke5 {[%clk 0:00:08]}  Kf7 {[%clk 0:00:10]} 76. Nf4 {[%clk 0:00:07]}  Kg7 {[%clk 0:00:10]} 77. Ke6 {[%clk 0:00:07]}  Kh6 {[%clk 0:00:10]} 78. Nd5 {[%clk 0:00:05]}  Kg7 {[%clk 0:00:10]} 79. Bd3 {[%clk 0:00:05]}  Kh6 {[%clk 0:00:10]} 80. Kf6 {[%clk 0:00:03]}  Kh5 {[%clk 0:00:10]} 81. Ne7 {[%clk 0:00:03]}  Kg4 {[%clk 0:00:10]} 82. Bf5+ {[%clk 0:00:04]}  Kf4 {[%clk 0:00:11]} 83. Ng6+ {[%clk 0:00:05]}  Ke3 {[%clk 0:00:11]} 84. Ke5 {[%clk 0:00:05]}  Kf3 {[%clk 0:00:11]} 85. Nf4 {[%clk 0:00:06]}  Ke3 {[%clk 0:00:11]} 86. Be4 {[%clk 0:00:06]}  Kd2 {[%clk 0:00:12]} 87. Kd4 {[%clk 0:00:06]}  Kc1 {[%clk 0:00:13]} 88. Kc3 {[%clk 0:00:06]}  Kd1 {[%clk 0:00:13]} 89. Bd3 {[%clk 0:00:06]}  Kc1 {[%clk 0:00:11]} 90. Ne2+ {[%clk 0:00:04]}  Kd1 {[%clk 0:00:11]} 91. Nd4 {[%clk 0:00:05]}  Kc1 {[%clk 0:00:10]} 92. Nb3+ {[%clk 0:00:05]}  Kd1 {[%clk 0:00:10]} 93. Bc4 {[%clk 0:00:04]}  Ke1 {[%clk 0:00:10]} 94. Kd4 {[%clk 0:00:04]}  Kf2 {[%clk 0:00:10]} 95. Nd2 {[%clk 0:00:04]}  Kg3 {[%clk 0:00:10]} 96. Ke3 {[%clk 0:00:05]}  Kg4 {[%clk 0:00:10]} 97. Ne4 {[%clk 0:00:05]}  Kf5 {[%clk 0:00:11]} 98. Kd4 {[%clk 0:00:04]}  Kg6 {[%clk 0:00:11]} 99. Ke5 {[%clk 0:00:04]}  Kh6 {[%clk 0:00:10]} 100. Kf6 {[%clk 0:00:03]}  Kh5 {[%clk 0:00:09]} 101. Ng5 {[%clk 0:00:04]}  Kg4 {[%clk 0:00:09]} 102. Bd5 {[%clk 0:00:04]}  Kf4 {[%clk 0:00:10]} 103. Ne6+ {[%clk 0:00:04]}  Ke3 {[%clk 0:00:10]} 104. Ke5 {[%clk 0:00:05]}  Kd2 {[%clk 0:00:09]} 105. Nd4 {[%clk 0:00:05]}  Kc3 {[%clk 0:00:10]} 106. Nb5+ {[%clk 0:00:05]}  Kb4 {[%clk 0:00:11]} 107. Nc7 {[%clk 0:00:04]}  Kc3 {[%clk 0:00:12]} 108. Be4 {[%clk 0:00:04]}  Kb4 {[%clk 0:00:12]} 109. Nd5+ {[%clk 0:00:05]}  Kb3 {[%clk 0:00:12]} 110. Kd4 {[%clk 0:00:06]}  Kb2 {[%clk 0:00:11]} 111. Nc3 {[%clk 0:00:05]}  Kb3 {[%clk 0:00:11]} 112. Bd5+ {[%clk 0:00:04]}  Kc2 {[%clk 0:00:12]} 113. Bc4 {[%clk 0:00:04]} 1/2-1/2


[Site "https://www.chess.com"]

[Event "Titled Tuesday Blitz February 28 Late 2023"]
[White "Averjanov, Alexey"]
[Black "Djokic, Mihailo"]
[WhiteFideId "14109867"]
[BlackFideId "976440"]
[WhiteElo "2665"]
[BlackElo "2294"]
[Result "1-0"]
[Round "07"]
[TimeControl "180+2"]
[Date "2023.02.28"]
[WhiteClock "0:00:14"]
[BlackClock "0:00:01"]

1. d4 {[%clk 0:02:59]}  Nf6 {[%clk 0:02:59]} 2. c4 {[%clk 0:02:58]}  g6 {[%clk 0:02:59]} 3. Nc3 {[%clk 0:02:56]}  Bg7 {[%clk 0:02:59]} 4. e4 {[%clk 0:02:57]}  d6 {[%clk 0:02:59]} 5. Be2 {[%clk 0:02:57]}  O-O {[%clk 0:02:59]} 6. Nf3 {[%clk 0:02:58]}  Bg4 {[%clk 0:02:59]} 7. Ng1 {[%clk 0:02:57]}  h5 {[%clk 0:02:56]} 8. Be3 {[%clk 0:02:51]}  a5 {[%clk 0:02:53]} 9. h3 {[%clk 0:02:46]}  Bd7 {[%clk 0:02:49]} 10. g4 {[%clk 0:02:45]}  hxg4 {[%clk 0:02:47]} 11. hxg4 {[%clk 0:02:46]}  e5 {[%clk 0:02:47]} 12. d5 {[%clk 0:02:43]}  Na6 {[%clk 0:02:47]} 13. g5 {[%clk 0:02:42]}  Ne8 {[%clk 0:02:47]} 14. Bg4 {[%clk 0:02:39]}  f5 {[%clk 0:02:44]} 15. gxf6 {[%clk 0:02:34]}  Nxf6 {[%clk 0:02:44]} 16. Bxd7 {[%clk 0:02:34]}  Qxd7 {[%clk 0:02:44]} 17. f3 {[%clk 0:02:24]}  Nh5 {[%clk 0:02:44]} 18. Qd2 {[%clk 0:02:22]}  Nc5 {[%clk 0:02:42]} 19. O-O-O {[%clk 0:02:21]}  a4 {[%clk 0:02:37]} 20. Qg2 {[%clk 0:02:17]}  Rf6 {[%clk 0:02:01]} 21. Nge2 {[%clk 0:02:09]}  a3 {[%clk 0:01:57]} 22. b3 {[%clk 0:02:08]}  Raf8 {[%clk 0:01:46]} 23. Rdg1 {[%clk 0:01:58]}  Nd3+ {[%clk 0:01:30]} 24. Kc2 {[%clk 0:01:55]}  Ndf4 {[%clk 0:01:29]} 25. Nxf4 {[%clk 0:01:49]}  Nxf4 {[%clk 0:01:24]} 26. Bxf4 {[%clk 0:01:42]}  exf4 {[%clk 0:01:21]} 27. Ne2 {[%clk 0:01:41]}  Qe7 {[%clk 0:01:17]} 28. Qg5 {[%clk 0:01:35]}  Qe5 {[%clk 0:00:58]} 29. Qxe5 {[%clk 0:01:30]}  dxe5 {[%clk 0:00:59]} 30. c5 {[%clk 0:01:25]}  Kf7 {[%clk 0:00:56]} 31. b4 {[%clk 0:01:24]}  Ra6 {[%clk 0:00:45]} 32. Kb3 {[%clk 0:01:24]}  Rh8 {[%clk 0:00:45]} 33. Rxh8 {[%clk 0:01:22]}  Bxh8 {[%clk 0:00:45]} 34. Nc3 {[%clk 0:01:18]}  Bf6 {[%clk 0:00:42]} 35. Nb5 {[%clk 0:01:15]}  Bd8 {[%clk 0:00:35]} 36. Nxa3 {[%clk 0:01:13]}  g5 {[%clk 0:00:35]} 37. Nc4 {[%clk 0:01:09]}  Bf6 {[%clk 0:00:29]} 38. Rh1 {[%clk 0:01:03]}  Kg6 {[%clk 0:00:27]} 39. b5 {[%clk 0:01:01]}  Ra8 {[%clk 0:00:26]} 40. a4 {[%clk 0:01:01]}  g4 {[%clk 0:00:25]} 41. fxg4 {[%clk 0:01:01]}  Kg5 {[%clk 0:00:25]} 42. Rh5+ {[%clk 0:00:53]}  Kxg4 {[%clk 0:00:24]} 43. Rf5 {[%clk 0:00:53]}  Bg7 {[%clk 0:00:20]} 44. d6 {[%clk 0:00:48]}  cxd6 {[%clk 0:00:20]} 45. Nxd6 {[%clk 0:00:49]}  f3 {[%clk 0:00:15]} 46. Kb4 {[%clk 0:00:41]}  Bh6 {[%clk 0:00:06]} 47. Nc4 {[%clk 0:00:26]}  Bf4 {[%clk 0:00:07]} 48. Nxe5+ {[%clk 0:00:25]}  Bxe5 {[%clk 0:00:06]} 49. Rxe5 {[%clk 0:00:25]}  Rf8 {[%clk 0:00:07]} 50. Rd5 {[%clk 0:00:26]}  f2 {[%clk 0:00:07]} 51. Rd1 {[%clk 0:00:25]}  Rf4 {[%clk 0:00:05]} 52. Rf1 {[%clk 0:00:20]}  Rxe4+ {[%clk 0:00:05]} 53. Ka5 {[%clk 0:00:21]}  Kf3 {[%clk 0:00:06]} 54. c6 {[%clk 0:00:20]}  bxc6 {[%clk 0:00:06]} 55. bxc6 {[%clk 0:00:19]}  Ke2 {[%clk 0:00:01]} 56. Rh1 {[%clk 0:00:18]}  f1=Q {[%clk 0:00:01]} 57. Rxf1 {[%clk 0:00:18]}  Kxf1 {[%clk 0:00:02]} 58. c7 {[%clk 0:00:16]}  Rc4 {[%clk 0:00:02]} 59. Kb6 {[%clk 0:00:16]}  Rb4+ {[%clk 0:00:01]} 60. Kc5 {[%clk 0:00:15]}  Rb1 {[%clk 0:00:01]} 61. Kd6 {[%clk 0:00:15]}  Rd1+ {[%clk 0:00:01]} 62. Kc6 {[%clk 0:00:14]}  Rc1+ {[%clk 0:00:01]} 63. Kb7 {[%clk 0:00:15]}  Ra1 {[%clk 0:00:01]} 64. c8=Q {[%clk 0:00:14]}  Rb1+ {[%clk 0:00:01]} 1-0


[Site "https://www.chess.com"]

[Event "Titled Tuesday Blitz February 28 Late 2023"]
[White "Lewtak, Damian"]
[Black "Remolar Gallen, Jose"]
[WhiteFideId "1141724"]
[BlackFideId "2215187"]
[WhiteElo "2302"]
[BlackElo "2223"]
[Result "1-0"]
[Round "07"]
[TimeControl "180+2"]
[Date "2023.02.28"]
[WhiteClock "0:00:10"]
[BlackClock "0:00:03"]

1. e4 {[%clk 0:03:00]}  c5 {[%clk 0:03:00]} 2. Nf3 {[%clk 0:03:00]}  d6 {[%clk 0:03:00]} 3. Bb5+ {[%clk 0:03:00]}  Nd7 {[%clk 0:02:59]} 4. O-O {[%clk 0:03:00]}  a6 {[%clk 0:02:57]} 5. Bd3 {[%clk 0:02:59]}  Ngf6 {[%clk 0:02:56]} 6. Re1 {[%clk 0:02:58]}  e6 {[%clk 0:02:54]} 7. c4 {[%clk 0:02:58]}  Be7 {[%clk 0:02:54]} 8. Nc3 {[%clk 0:02:58]}  O-O {[%clk 0:02:54]} 9. Bf1 {[%clk 0:02:58]}  b6 {[%clk 0:02:45]} 10. d4 {[%clk 0:02:58]}  cxd4 {[%clk 0:02:43]} 11. Nxd4 {[%clk 0:02:59]}  Bb7 {[%clk 0:02:43]} 12. b3 {[%clk 0:02:57]}  Qc7 {[%clk 0:02:39]} 13. Bb2 {[%clk 0:02:57]}  Rfd8 {[%clk 0:02:32]} 14. Rc1 {[%clk 0:02:56]}  Nc5 {[%clk 0:02:29]} 15. Bd3 {[%clk 0:02:40]}  Nxd3 {[%clk 0:02:06]} 16. Qxd3 {[%clk 0:02:41]}  Nd7 {[%clk 0:02:04]} 17. Qg3 {[%clk 0:02:36]}  Bf6 {[%clk 0:01:59]} 18. Nf3 {[%clk 0:02:31]}  Rac8 {[%clk 0:01:55]} 19. Na4 {[%clk 0:02:31]}  Bxb2 {[%clk 0:01:51]} 20. Nxb2 {[%clk 0:02:32]}  Nc5 {[%clk 0:01:33]} 21. Nd2 {[%clk 0:02:21]}  Bc6 {[%clk 0:01:31]} 22. Qe3 {[%clk 0:02:12]}  Qb7 {[%clk 0:01:29]} 23. b4 {[%clk 0:02:08]}  Nd7 {[%clk 0:01:18]} 24. f3 {[%clk 0:02:07]}  Ne5 {[%clk 0:00:56]} 25. Nb3 {[%clk 0:02:00]}  Be8 {[%clk 0:00:43]} 26. a3 {[%clk 0:01:57]}  Rc7 {[%clk 0:00:41]} 27. Red1 {[%clk 0:01:56]}  Rcd7 {[%clk 0:00:19]} 28. Rd2 {[%clk 0:01:52]}  Rc8 {[%clk 0:00:18]} 29. f4 {[%clk 0:01:35]}  Ng6 {[%clk 0:00:09]} 30. Rcd1 {[%clk 0:01:29]}  Qc7 {[%clk 0:00:09]} 31. g3 {[%clk 0:01:26]}  Rcd8 {[%clk 0:00:10]} 32. Na4 {[%clk 0:01:19]}  Rb8 {[%clk 0:00:09]} 33. Nb2 {[%clk 0:01:19]}  Ne7 {[%clk 0:00:09]} 34. Nd4 {[%clk 0:00:59]}  Rdd8 {[%clk 0:00:08]} 35. Nf3 {[%clk 0:00:57]}  Bc6 {[%clk 0:00:06]} 36. Ng5 {[%clk 0:00:55]}  h6 {[%clk 0:00:05]} 37. Nf3 {[%clk 0:00:54]}  Ba8 {[%clk 0:00:05]} 38. Re1 {[%clk 0:00:51]}  Rbc8 {[%clk 0:00:05]} 39. Nd4 {[%clk 0:00:49]}  Nc6 {[%clk 0:00:04]} 40. Red1 {[%clk 0:00:47]}  Nxd4 {[%clk 0:00:04]} 41. Rxd4 {[%clk 0:00:48]}  Qc6 {[%clk 0:00:04]} 42. a4 {[%clk 0:00:44]}  f5 {[%clk 0:00:04]} 43. b5 {[%clk 0:00:43]}  axb5 {[%clk 0:00:04]} 44. axb5 {[%clk 0:00:44]}  Qb7 {[%clk 0:00:04]} 45. Rxd6 {[%clk 0:00:41]}  Rxd6 {[%clk 0:00:05]} 46. Rxd6 {[%clk 0:00:41]}  fxe4 {[%clk 0:00:02]} 47. Rxb6 {[%clk 0:00:30]}  Qa7 {[%clk 0:00:02]} 48. Kf2 {[%clk 0:00:28]}  Rd8 {[%clk 0:00:01]} 49. Ke2 {[%clk 0:00:21]}  Qa2 {[%clk 0:00:02]} 50. Qc3 {[%clk 0:00:19]}  e3 {[%clk 0:00:01]} 51. Ra6 {[%clk 0:00:10]}  Rd2+ {[%clk 0:00:01]} 52. Kxe3 {[%clk 0:00:09]}  Qxb2 {[%clk 0:00:01]} 53. Qxb2 {[%clk 0:00:09]}  Rxb2 {[%clk 0:00:02]} 54. Rxa8+ {[%clk 0:00:09]}  Kf7 {[%clk 0:00:02]} 55. Kd4 {[%clk 0:00:10]}  Kf6 {[%clk 0:00:02]} 56. Kc5 {[%clk 0:00:09]}  Rxh2 {[%clk 0:00:03]} 57. b6 {[%clk 0:00:10]}  h5 {[%clk 0:00:03]} 58. b7 {[%clk 0:00:10]} 1-0


[Site "https://www.chess.com"]